[Event "Mitropa Cup Women 2022"]
[Site "Corte"]
[Date "2022.05.04"]
[Round "5.4"]
[White "Butenandt, Svenja"]
[Black "Karacsonyi, Kata"]
[Result "1/2-1/2"]
[ECO "E46"]
[WhiteElo "2097"]
[BlackElo "2058"]
[Annotator "TA"]
[PlyCount "69"]
[EventDate "2022.04.30"]
[EventType "team-tourn"]
[EventCountry "FRA"]
[SourceTitle "playchess.com"]
[Source "ChessBase"]
[SourceQuality "1"]
[WhiteTeam "Germany"]
[BlackTeam "Hungary"]
[WhiteTeamCountry "GER"]
[BlackTeamCountry "HUN"]
[TimeControl "40/5400+30:1800+30"]

{[%evp 9,69,4,10,-1,1,0,20,18,6,0,12,11,9,-10,-17,-3,-12,-8,10,0,26,18,92,0,0,-25,15,-14,-10,-69,-85,-100,-35,-87,0,-215,-35,-59,-11,-27,-12,-109,-49,-36,0,-13,-4,-8,0,0,0,0,14,4,12,0,0,0,16,0,0,0]} 1. d4 {[%emt 0:00:01]} Nf6 {[%emt 0:00:12]} 2. c4 {[%emt 0:00:06]} e6 {[%emt 0:00:09]} 3. Nc3 {[%emt 0:00:04]} Bb4 {[%emt 0:00:13]} 4. e3 {[%emt 0:00:07]} O-O {[%emt 0:00:10]} 5. Nge2 {[%emt 0:00:07]} c6 {[%emt 0:00:22]} 6. a3 {[%emt 0:12:33] E46: Nimzo-Indian: Rubinstein: 4 e3 0-0 5 Ne2 without early Bd3.} Ba5 {[%emt 0:00:53]} 7. c5 {[%emt 0:12:30]} d6 {[%emt 0:00:27]} 8. cxd6 {[%emt 0:02:00]} Qxd6 {[%emt 0:00:09]} 9. b4 {[%emt 0:02:47]} Bc7 {[%emt 0:00:07]} 10. g3 {[%emt 0:06:53]} a5 {[%emt 0:01:24]} 11. Rb1 {[%emt 0:04:40]} axb4 {[%emt 0:00:34]} 12. axb4 {[%emt 0:00:11]} e5 {[%emt 0:02:26]} 13. Bg2 {[%emt 0:01:28] [#]} Rd8 $146 {[%emt 0:13:43]} ({Predecessor:} 13... Bf5 14. e4 Bg6 15. O-O Rd8 16. Be3 Ng4 17. Qb3 Nxe3 18. fxe3 Nd7 19. Rbd1 Nf6 {1-0 (49) Malek,D (2405)-Hiebert,K (2017) Berlin 2017}) 14. O-O {[%emt 0:02:09]} Qe7 {[%emt 0:14:04]} (14... Bf5 $5 {[%cal Rf5b1]} 15. e4 Bg4 $11) 15. Qc2 {[%emt 0:02:28]} Nbd7 {[%emt 0:14:52] [#]} (15... Na6 $11) 16. Kh1 {[%emt 0:19:32]} (16. b5 $1 $16) 16... Nb6 $36 {[%emt 0:05:27][%mdl 2048] Black is more active.} 17. dxe5 {[%emt 0:03:37]} Qxe5 {[%emt 0:01:13]} 18. e4 {[%emt 0:02:44]} (18. b5 $5 {[%cal Rb5c6]}) 18... Nc4 {[%emt 0:11:35]} 19. Na4 {[%emt 0:09:09]} ({White should play} 19. b5 $11) 19... b5 $1 $15 {[%emt 0:03:14]} 20. Nc5 {[%emt 0:00:46]} Qh5 {[%emt 0:02:19]} ({Better is} 20... Bb6 $17 21. Nd3 Qe7) 21. Nf4 {[%emt 0:01:58]} (21. Rb3 $15) 21... Bxf4 $17 {[%emt 0:02:47]} 22. Bxf4 {[%emt 0:00:15]} (22. gxf4 $11 Bg4 23. f3) 22... Bh3 $2 {[%emt 0:06:38]} ({Inferior is} 22... Ng4 23. h4 $17) (22... g5 $19 23. Bc1 Ng4) 23. Rbe1 $1 $15 {[%emt 0:02:15]} Ra3 {[%emt 0:09:43]} (23... Ng4 $15 24. f3 Bxg2+ 25. Qxg2 Nge5) 24. f3 $11 {[%emt 0:04:11]} Rda8 {[%emt 0:02:10] Strongly threatening ...Ra2.} 25. Bxh3 {[%emt 0:01:36] [#]} (25. Qf2 $11) 25... Qxh3 {[%emt 0:00:07]} ({Black should try} 25... Ra2 $1 $17 {[%cal Ra2c2]} 26. Qg2 Rxg2 27. Bxg2 g5) 26. Qg2 $15 {[%emt 0:00:03]} Qxg2+ {[%emt 0:04:22]} (26... Qc8 $5 {[%cal Rf6d7]}) 27. Kxg2 {[%emt 0:00:01] The position is equal.} Ra2+ {[%emt 0:00:58]} 28. Rf2 {[%emt 0:00:09]} Rxf2+ {[%emt 0:00:42]} (28... h6 {keeps more tension.} 29. h4 Nh5 30. Be3 R8a3) 29. Kxf2 {[%emt 0:00:01]} Ra2+ {[%emt 0:00:04]} 30. Re2 {[%emt 0:00:20]} Ra1 {[%emt 0:00:07]} 31. g4 {[%emt 0:00:59]} h6 {[%emt 0:00:38]} 32. Re1 {[%emt 0:00:50]} Ra2+ {[%emt 0:00:10]} 33. Re2 {[%emt 0:00:53]} Ra1 {[%emt 0:00:05]} 34. Re1 {[%emt 0:01:38]} Ra2+ {[%emt 0:00:09]} 35. Re2 {[%emt 0:00:38] Weighted Error Value: White=0.27 (precise) /Black=0.22 (precise)} 1/2-1/2

[Event "Mitropa Cup Women 2022"]
[Site "Corte"]
[Date "2022.05.04"]
[Round "5.4"]
[White "Zhuang, Yongzhe"]
[Black "Koubova, Anna Marie"]
[Result "0-1"]
[ECO "C01"]
[WhiteElo "1701"]
[BlackElo "2115"]
[Annotator "TA"]
[PlyCount "72"]
[EventDate "2022.04.30"]
[EventType "team-tourn"]
[EventCountry "FRA"]
[SourceTitle "playchess.com"]
[Source "ChessBase"]
[SourceQuality "1"]
[WhiteTeam "Switzerland"]
[BlackTeam "Czech Republic"]
[WhiteTeamCountry "SUI"]
[BlackTeamCountry "CZE"]
[TimeControl "40/5400+30:1800+30"]

{[%evp 10,72,23,13,16,9,16,8,30,21,23,20,20,15,17,7,20,17,29,26,40,40,33,21,16,2,20,8,39,0,66,-116,110,95,354,341,337,329,502,467,589,588,568,552,666,0,0,-445,-121,-110,-88,-208,-204,-187,-161,-141,-121,-1254,-1175,-4814,-941,-820,-819,-4678,-783]} 1. e4 {[%emt 0:00:08]} e6 {[%emt 0:00:24]} 2. d4 {[%emt 0:00:12]} d5 {[%emt 0:00:14]} 3. exd5 {[%emt 0:00:29]} exd5 {[%emt 0:00:46]} 4. Nf3 {[%emt 0:00:27]} Nf6 {[%emt 0:00:32]} 5. Bd3 {[%emt 0:00:18]} c5 {[%emt 0:05:47]} 6. c3 {[%emt 0:01:54]} Be7 {[%emt 0:06:35] B22: Sicilian: 2 c3.} 7. h3 {[%emt 0:02:48]} O-O {[%emt 0:01:10]} 8. O-O {[%emt 0:00:20]} h6 {[%emt 0:01:14] The position is equal.} 9. dxc5 {[%emt 0:05:44]} Bxc5 10. Nbd2 {[%cal Bb1d2,Bd2b3,Bb3d4][%mdl 32]} Nc6 {[%emt 0:03:38]} 11. Nb3 {[%emt 0:02:43]} Bb6 {[%emt 0:00:38]} 12. Nbd4 {[%emt 0:07:41]} Bc7 {[%emt 0:04:04]} 13. Be3 {[%emt 0:03:28]} a6 {[%emt 0:01:36]} 14. Qc2 {[%emt 0:04:05]} Qd6 {[%emt 0:07:51]} 15. Rfe1 {[%emt 0:08:50]} Re8 {[%emt 0:05:35]} 16. Rad1 {[%emt 0:03:26] [#]} Ne4 $146 {[%emt 0:05:31]} ({Predecessor:} 16... Bd7 17. a3 Rac8 18. c4 dxc4 19. Bxc4 Nxd4 20. Rxd4 Qc6 21. Rc1 Bb6 22. Qb3 Kh8 23. Bxf7 Rxe3 24. Rxc6 Rxb3 25. Rxc8+ Bxc8 26. Bxb3 Bxd4 27. Nxd4 {1-0 (49) Vignesh,N (2445)-Hajiyeva,L (1974) Chess.com INT 2021}) 17. Nxc6 {[%emt 0:08:41]} bxc6 {[%emt 0:03:58]} 18. c4 {[%emt 0:09:15]} Bf5 {[%emt 0:04:54]} 19. c5 {[%emt 0:04:48]} (19. Rc1 $5 {[%cal Rc4d5]}) 19... Qd7 {[%emt 0:04:24]} (19... Qe7 $11) 20. Bxh6 $2 {[%emt 0:06:50]} Bxh3 $2 {[%emt 0:26:53]} 21. Bxe4 $16 {[%emt 0:08:17] Black must now prevent Bh7+.} gxh6 $4 {[%emt 0:05:27][%mdl 8192]} (21... Qg4 $16 22. Nh2 Qh5 23. Bh7+ (23. gxh3 Qxh3 24. Bh7+ Kh8 $16) 23... Kh8 24. gxh3 (24. Rxe8+ Rxe8 25. gxh3 Qxh3 $11) 24... Qxh3) 22. gxh3 $18 {[%emt 0:04:33]} Qxh3 {[%emt 0:00:22]} 23. Bh7+ {[%emt 0:00:27]} Kh8 {[%emt 0:00:07]} (23... Kf8 {was worth a try.} 24. Rxe8+ Rxe8) 24. Qc3+ {[%emt 0:04:24]} d4 {[%emt 0:01:43]} (24... Kxh7 $2 25. Ng5+ $1 {[%mdl 512]} hxg5 26. Qxh3+) 25. Rxe8+ {[%emt 0:01:35]} Rxe8 {[%emt 0:00:14] [#]} 26. Rxd4 {[%emt 0:00:19]} f6 {[%emt 0:06:44] [#]} (26... Bh2+ 27. Nxh2) 27. Rd6 $2 {[%emt 0:07:39]} Qg4+ $40 {[%emt 0:01:00][%mdl 128] Black has some attack.} (27... Bxd6 $2 28. Qxf6+ Kxh7 29. Qf7+ Kh8 30. Qxe8+ Kg7 31. cxd6 $18) 28. Kh1 $2 {[%emt 0:00:12][%mdl 8192]} (28. Kf1 $1 $11 {and White is okay.} Bxd6 29. Qxf6+ Qg7 30. Qg6 (30. Qxd6 Kxh7 31. Qxc6 Qe7 $15)) 28... Bxd6 $2 {[%emt 0:01:16]} (28... Kxh7 $19 29. Qd3+ (29. Rxc6 {leads to mate.} Qh3+ 30. Kg1 Rg8+) 29... Kh8) 29. Qxf6+ $17 {[%emt 0:00:50]} Qg7 {[%emt 0:00:38]} 30. Qxd6 {[%emt 0:00:49]} (30. Qxg7+ $17 {is a better defense.} Kxg7 31. cxd6 Kxh7 32. d7) 30... Kxh7 $19 {[%emt 0:01:04]} 31. Qxc6 $17 {[%emt 0:00:28][%mdl 4096] Endgame KQR-KQN} Rf8 {[%emt 0:00:52]} 32. Qe4+ {[%emt 0:00:30]} Qg6 {[%emt 0:00:24][%mdl 1024] Black has strong compensation.} 33. Qe7+ {[%emt 0:02:46][%mdl 8192]} ({But not} 33. Nd2 $2 Rxf2 34. Qd5 h5 $19) (33. Qxg6+ $17 Kxg6 34. Kg2) 33... Rf7 $19 {[%emt 0:00:20] Black is clearly winning.} 34. Qe3 {[%emt 0:01:07]} Qh5+ {[%emt 0:00:39]} (34... Rg7 $142 35. Ng5+ Qxg5 36. Qxg5 Rxg5) 35. Kg2 {[%emt 0:00:06]} Qg4+ {[%emt 0:00:22][%mdl 64] Deflection} 36. Kh2 {[%emt 0:00:17]} Qxf3 {[%emt 0:00:32] Black used his chance.  Weighted Error Value: White=0.91/Black=0.80} (36... Rxf3 $142 37. Qe7+ Kg6 38. Qe8+ Rf7) 0-1

[Event "Mitropa Cup Women 2022"]
[Site "Corte"]
[Date "2022.05.04"]
[Round "5.5"]
[White "Guichard, Pauline"]
[Black "Exler, Veronika"]
[Result "1/2-1/2"]
[ECO "D85"]
[WhiteElo "2377"]
[BlackElo "2140"]
[Annotator "TA"]
[PlyCount "67"]
[EventDate "2022.04.30"]
[EventType "team-tourn"]
[EventCountry "FRA"]
[SourceTitle "playchess.com"]
[Source "ChessBase"]
[SourceQuality "1"]
[WhiteTeam "France"]
[WhiteTeamCountry "FRA"]
[TimeControl "40/5400+30:1800+30"]

{[%evp 15,67,0,0,-13,0,0,0,0,-18,-61,-64,-46,-68,-57,-38,-50,-38,-64,-65,-74,0,-96,-99,-100,-32,-50,0,0,0,0,0,0,0,-114,-108,-185,-171,-300,0,0,0,-114,-86,-184,0,-115,-83,-324,0,0,0,-332,0,-48]} 1. d4 {[%emt 0:00:03]} Nf6 {[%emt 0:00:05]} 2. c4 {[%emt 0:00:06]} g6 {[%emt 0:00:06]} 3. Nc3 {[%emt 0:00:30]} d5 {[%emt 0:00:12]} 4. cxd5 {[%emt 0:00:36]} Nxd5 {[%emt 0:00:07]} 5. Nf3 {[%emt 0:00:06]} Bg7 {[%emt 0:00:29]} 6. e4 {[%emt 0:00:10]} Nxc3 {[%emt 0:00:05]} 7. bxc3 {[%emt 0:00:05]} c5 {[%emt 0:00:06]} 8. Bb5+ {[%emt 0:00:37]} Nc6 $1 {[%emt 0:02:38] 8...Nc6 scores better than 8...Bd7.} 9. d5 {[%emt 0:15:06] [#] D85: Exchange Grünfeld: Unusual White 7th moves and lines with 7 Nf3.} Qa5 $1 {[%emt 0:04:24]} 10. Rb1 {[%emt 0:02:13]} Bxc3+ {[%emt 0:19:55]} 11. Bd2 {[%emt 0:00:32]} a6 {[%emt 0:00:21]} 12. Ba4 {[%emt 0:01:46][%mdl 64] Pin} Bxd2+ $1 {[%emt 0:08:02]} 13. Nxd2 {[%emt 0:00:23] [#]} b5 $1 {[%emt 0:00:47] Strongly threatening ...Nd4.} 14. dxc6 {[%emt 0:00:53]} bxa4 {[%emt 0:02:18]} 15. O-O {[%emt 0:09:15] Threatens to win with Nc4.} Be6 {[%emt 0:07:38] Against Nc4} 16. Nf3 {[%emt 0:08:59]} O-O $1 {[%emt 0:03:28]} 17. Qc1 {[%emt 0:00:56]} Rac8 {[%emt 0:28:15]} (17... Bxa2 18. Rb7 $11) (17... Rfc8 $17 18. Qh6 f6) 18. Qh6 {[%emt 0:20:14]} (18. Rb7 $1 $11 Rc7 19. Rxc7 Qxc7 20. Qxc5) 18... f6 $17 {[%emt 0:00:21]} 19. Rb7 {[%emt 0:03:07]} Rc7 {[%emt 0:00:07]} ({Better is} 19... Rf7 $17 20. e5 Rxc6 21. Rb8+ Rc8 22. Rxc8+ Bxc8) 20. h4 $1 $15 {[%emt 0:02:56][%cal Bh2h4,Bh4h5][%mdl 32] [#]} Rxb7 $146 {[%emt 0:12:35]} (20... Bc8 $1 $15 21. Rb8 c4) ({Predecessor:} 20... Bg4 21. Qf4 Bxf3 22. Qxc7 Qxc7 23. Rxc7 Bxe4 24. Re1 Bd5 25. Rexe7 Rb8 26. Rxh7 Bxc6 {1-0 (35) Can,E (2569)-Aizenberg,B (2309) Reykjavik 2021}) 21. cxb7 $11 {[%emt 0:00:06]} Qb6 $1 {[%emt 0:00:14]} 22. h5 {[%emt 0:00:07]} g5 {[%emt 0:04:35][%cal Bg6g5,Bg5g4][%mdl 32]} 23. Rc1 {[%emt 0:10:10]} g4 $36 {[%emt 0:00:53][%mdl 2048] Black is pushing.} 24. Nh4 {[%emt 0:05:32]} (24. Ng5 $1 $11 fxg5 25. Qxg5+ Kf7 26. Qf4+ Kg8 27. Qg5+ Kf7 28. Qf4+ Kg8 29. Qg5+) 24... Qxb7 $17 {[%emt 0:01:31]} 25. e5 {[%emt 0:00:10]} (25. Ng6 $17 {was called for.} Re8 26. e5) 25... Qd5 $19 {[%emt 0:01:40]} 26. Ng6 {[%emt 0:06:04] [#]} (26. g3 $142) 26... Re8 $2 {[%emt 0:00:45]} ({Much less strong is} 26... hxg6 27. hxg6 Rf7 28. gxf7+ Kxf7 29. exf6 exf6 30. Qh7+ Kf8 31. Qh8+ Kf7 32. Qh7+ Ke8 33. Rb1 $18) (26... Rf7 $1 $19 27. Rb1 Qd8 28. exf6 exf6) 27. Re1 $1 $11 {[%emt 0:01:55]} Qd7 {[%emt 0:01:33]} 28. Nf4 {[%emt 0:01:53]} (28. a3 $1 $11 {was the only way to keep the balance.}) 28... Bxa2 $17 {[%emt 0:00:30] Hoping for ...a3.} 29. Kh2 {[%emt 0:06:28] [#]} (29. Re3 $17 {was worth a try.}) 29... Bb3 $2 {[%emt 0:00:37]} (29... Rf8 $1 $19 {aiming for ...a5.} 30. Re3 Bc4) 30. Re3 {[%emt 0:03:09]} (30. exf6 $11 {remains equal.} exf6 31. Rxe8+ Qxe8 32. Qxf6) 30... Rf8 {[%emt 0:00:30]} 31. Ng6 $2 {[%emt 0:01:17]} Re8 $2 {[%emt 0:00:34]} ({Inferior is} 31... hxg6 32. Qxg6+ Kh8 33. Qh6+ Kg8 34. Qg6+ Kh8 35. Qh6+ Kg8 36. Qg6+ $11) (31... Rf7 $19 32. exf6 exf6) 32. Nf4 $11 {[%emt 0:00:18]} Rf8 $2 {[%emt 0:00:06][%mdl 8192]} (32... a5 $11) 33. Ng6 $1 $19 {[%emt 0:00:40][%csl Gg6][%cal Rh6f8]} Re8 {[%emt 0:00:02]} ({And not} 33... hxg6 34. Qxg6+ Kh8 35. Qh6+ Kg8 36. Qg6+ Kh8 37. Qh6+ Kg8 38. Qg6+ $11) (33... Rf7 $19 34. Nf4 Qc8 35. exf6 exf6) 34. Nf4 {[%emt 0:00:26] Weighted Error Value: White=0.45/Black=0.54} 1/2-1/2

[Event "Mitropa Cup Women 2022"]
[Site "Corte"]
[Date "2022.05.04"]
[Round "5.6"]
[White "Trippold, Denise"]
[Black "Navrotescu, Andreea"]
[Result "0-1"]
[ECO "A10"]
[WhiteElo "2131"]
[BlackElo "2318"]
[Annotator "TA"]
[PlyCount "70"]
[EventDate "2022.04.30"]
[EventType "team-tourn"]
[EventCountry "FRA"]
[SourceTitle "playchess.com"]
[Source "ChessBase"]
[SourceQuality "1"]
[BlackTeam "France"]
[BlackTeamCountry "FRA"]
[TimeControl "40/5400+30:1800+30"]

{[%evp 9,70,0,31,31,44,19,12,15,15,0,2,9,11,22,17,11,15,18,81,91,95,39,28,44,55,60,71,22,31,33,34,37,49,35,25,-17,17,0,34,0,79,-62,54,-26,-14,-147,-149,-150,-159,-224,-217,-231,-233,-248,-237,-228,-233,-226,-232,-302,-297,-1048,-1009]} 1. c4 {[%emt 0:00:06]} f5 {[%emt 0:00:30]} 2. g3 {[%emt 0:00:35]} Nf6 {[%emt 0:00:08]} 3. Bg2 {[%emt 0:00:08]} e5 {[%emt 0:04:12]} 4. Nc3 {[%emt 0:05:08]} Bb4 {[%emt 0:01:23]} 5. Nd5 {[%emt 0:06:07]} Bc5 {[%emt 0:06:15]} 6. e3 {[%emt 0:01:07] A21: English Opening: 1...e5 2 Nc3.} c6 {[%emt 0:00:42]} 7. Nc3 {[%emt 0:07:53]} d6 {[%emt 0:09:32] [#]} 8. Nge2 $146 {[%emt 0:01:37] The position is equal.} ({Predecessor:} 8. d4 Bb4 9. Nge2 Be6 10. dxe5 dxe5 11. Qxd8+ Kxd8 12. b3 Nbd7 13. O-O Nc5 14. Rd1+ {1-0 (41) Repasky,K (1857)-Medvec,M (2009) Slovakia 2019}) 8... Be6 {[%emt 0:07:49]} 9. b3 {[%emt 0:04:52]} O-O {[%emt 0:01:51]} 10. O-O {[%emt 0:00:23]} Bb6 {[%emt 0:04:05]} 11. d4 {[%emt 0:00:51]} e4 {[%emt 0:03:34]} 12. Ba3 {[%emt 0:12:41]} Bf7 {[%emt 0:01:36]} 13. f3 {[%emt 0:08:43]} Re8 {[%emt 0:07:26]} (13... exf3 $11 14. Rxf3 Qe7) 14. fxe4 $16 {[%emt 0:03:55]} fxe4 {[%emt 0:00:25] [#]} 15. Rf4 {[%emt 0:06:42]} (15. Rxf6 $1 $16 Qxf6 16. Nxe4) 15... d5 $14 {[%emt 0:05:06]} 16. cxd5 {[%emt 0:09:58]} Bxd5 {[%emt 0:05:25]} 17. Qc2 {[%emt 0:05:38]} (17. Nxd5 Nxd5 18. Rxe4 Nxe3 $11) 17... Bc7 {[%emt 0:00:55]} 18. Rff1 {[%emt 0:06:10]} (18. Nxd5 Nxd5 19. Rxe4 Nxe3 $11) ({White should try} 18. Rh4 $16) 18... Ng4 {[%emt 0:04:15]} 19. Qd2 {[%emt 0:00:52]} ({Inferior is} 19. Bxe4 Bxe4 20. Nxe4 Nxe3 $17) (19. Nxe4 $2 Nxe3 20. Qd3 Nxg2 $19) 19... Nd7 {[%emt 0:00:45]} 20. Nf4 {[%emt 0:01:37]} Ndf6 {[%emt 0:00:57]} 21. h3 {[%emt 0:02:54]} Nh6 {[%emt 0:00:12]} 22. Rac1 {[%emt 0:02:49]} Qd7 {[%emt 0:03:36]} (22... Bxf4 $5 23. gxf4 (23. Rxf4 Nh5 $11) 23... Nf5 $11) 23. Qf2 {[%emt 0:02:49]} Nf7 {[%emt 0:02:51]} 24. Rc2 {[%emt 0:03:47]} Ng5 {[%emt 0:01:10]} (24... Rac8 $11 {remains equal.}) 25. g4 {[%emt 0:01:34]} (25. Nfxd5 $16 cxd5 26. Qf5 Nf3+ 27. Rxf3 exf3 28. Qxd7 Nxd7 29. Bxf3) 25... Ba5 {[%emt 0:00:27]} (25... Bf7 $1 $15) 26. Nce2 {[%emt 0:02:05]} (26. Ncxd5 $14 cxd5 27. Qh4) 26... Nf3+ {[%emt 0:02:07]} 27. Bxf3 {[%emt 0:01:24]} (27. Kh1 $1 $11) 27... exf3 $17 {[%emt 0:00:02]} 28. Ng3 {[%emt 0:00:56]} ({Don't blunder} 28. Nxd5 $2 Nxd5 29. Qxf3 Nxe3 $19) 28... Ne4 {[%emt 0:00:39]} 29. Nxe4 {[%emt 0:00:32]} (29. Qxf3 $17 Nd2 30. Qe2 Nxf1 31. Nxf1) 29... Bxe4 $19 {[%emt 0:00:01]} 30. Rcc1 {[%emt 0:00:56]} Bc7 {[%emt 0:00:56] A strong pair of Bishops.} 31. Nh5 {[%emt 0:00:20]} a5 {[%emt 0:00:30][%cal Ba7a5,Ba5a4][%mdl 32]} 32. Ng3 {[%emt 0:00:23]} Bxg3 {[%emt 0:03:43]} 33. Qxg3 {[%emt 0:00:02]} a4 {[%emt 0:00:06] Hoping for ...axb3.} 34. Qd6 {[%emt 0:01:22]} Qf7 {[%emt 0:00:05]} 35. b4 {[%emt 0:00:33]} (35. Rc3) 35... Qxa2 {[%emt 0:00:10] Weighted Error Value: White=0.55/Black=0.22 (precise)} 0-1

[Event "Mitropa Cup Women 2022"]
[Site "Corte"]
[Date "2022.05.04"]
[Round "5.7"]
[White "Benmesbah, Natacha"]
[Black "Hapala, Elisabeth"]
[Result "1/2-1/2"]
[ECO "B40"]
[WhiteElo "2251"]
[BlackElo "2116"]
[Annotator "TA"]
[PlyCount "89"]
[EventDate "2022.04.30"]
[EventType "team-tourn"]
[EventCountry "FRA"]
[SourceTitle "playchess.com"]
[Source "ChessBase"]
[SourceQuality "1"]
[WhiteTeam "France"]
[BlackTeam "Austria"]
[WhiteTeamCountry "FRA"]
[BlackTeamCountry "AUT"]
[TimeControl "40/5400+30:1800+30"]

{[%evp 12,89,16,14,24,1,3,-17,14,-29,-34,-33,-8,-24,-6,-9,-13,-2,0,-21,-11,-18,30,23,18,8,43,21,29,38,30,17,31,0,0,0,37,0,25,0,0,0,0,-61,-41,-75,-85,-718,0,-13,10,0,0,0,0,0,168,154,147,163,156,128,217,163,253,235,239,141,206,0,64,12,15,17,45,0,0,0,0,0]} 1. e4 {[%emt 0:00:03]} c5 {[%emt 0:00:04]} 2. Nf3 {[%emt 0:00:04]} e6 {[%emt 0:00:03]} 3. g3 {[%emt 0:00:04]} Nc6 {[%emt 0:00:09]} 4. Bg2 {[%emt 0:00:03]} Nf6 {[%emt 0:00:19]} 5. d3 {[%emt 0:00:07]} Be7 {[%emt 0:00:57]} 6. O-O {[%emt 0:00:43]} d6 {[%emt 0:00:22]} 7. Re1 {[%emt 0:02:43]} O-O {[%emt 0:07:38] B30: Sicilian: 2...Nc6 3 Bb5, lines without ...g6.} 8. Qe2 {[%emt 0:04:30]} e5 {[%emt 0:00:53] [#]} 9. Bg5 $146 {[%emt 0:01:31]} ({Predecessor:} 9. c3 Bg4 10. h3 Bd7 11. Nbd2 Qc8 12. Kh2 Ne8 13. g4 Nc7 14. Nf1 Ne6 15. Ng3 g6 {0-1 (53) Espinoza Solano,J (1878)-Duarte,J (1938) Managua 2019}) 9... Bg4 {[%emt 0:05:03]} 10. Bxf6 {[%emt 0:02:50]} Bxf6 {[%emt 0:00:07]} 11. c3 {[%emt 0:00:50]} Qd7 {[%emt 0:06:24]} 12. Nbd2 {[%emt 0:03:49][%cal Bb1d2,Bd2c4,Bc4e3][%mdl 32]} g6 {[%emt 0:04:43]} 13. Nc4 {[%emt 0:02:06]} h6 {[%emt 0:17:31]} 14. Ne3 {[%emt 0:13:43]} Be6 {[%emt 0:00:18]} 15. h4 {[%emt 0:01:58]} Bg7 {[%emt 0:03:24]} 16. h5 {[%emt 0:02:18]} g5 {[%emt 0:00:48]} (16... Ne7 {deserves consideration.}) 17. Nd2 {[%emt 0:07:51][%cal Bf3d2,Bd2c4,Bc4e3,Be3d5,Bd5e7,Be7f5][%mdl 32]} Ne7 {[%emt 0:06:46]} 18. a4 {[%emt 0:00:54]} Rad8 {[%emt 0:16:42]} 19. Ndc4 {[%emt 0:02:56]} f5 {[%emt 0:06:24]} 20. exf5 {[%emt 0:00:42]} Nxf5 {[%emt 0:00:02]} 21. Nxf5 {[%emt 0:05:13]} Rxf5 {[%emt 0:02:46]} 22. Ne3 {[%emt 0:00:45]} (22. d4 $5) 22... Rf7 {[%emt 0:02:11]} 23. Bd5 {[%emt 0:00:48]} Rdf8 {[%emt 0:01:46] [#] Strongly threatening ...Bxd5.} 24. Rf1 {[%emt 0:00:38]} Kh8 {[%emt 0:01:58]} 25. a5 {[%emt 0:07:59]} Bxd5 {[%emt 0:03:36]} 26. Nxd5 {[%emt 0:00:05]} Qh3 {[%emt 0:00:04]} 27. Ra4 {[%emt 0:04:48]} (27. a6 $11) 27... Rf3 $1 $15 {[%emt 0:02:41]} 28. Ne7 {[%emt 0:17:01] Hoping for Ng6+.} (28. Nf4 $2 R3xf4 29. gxf4 gxf4 $19) 28... Qxh5 {[%emt 0:01:04]} 29. g4 {[%emt 0:00:15][%mdl 8192]} (29. Qe4 $17 R8f7 30. Kg2) 29... Qf7 $2 {[%emt 0:01:28]} (29... Qe8 $19 30. Kg2 Qxe7) 30. Nf5 $11 {[%emt 0:00:04]} Rf4 {[%emt 0:06:18]} 31. Rxf4 {[%emt 0:00:51]} gxf4 32. f3 {[%emt 0:02:52]} Qg6 {[%emt 0:01:38] ...Rxf5 is the strong threat.} 33. Qe4 {[%emt 0:01:53]} Qg5 $2 {[%emt 0:02:16]} (33... d5 $11 34. Ne7 Qg5 35. Nxd5 (35. Ng6+ Kg8 $11) 35... h5) 34. Kf2 {[%emt 0:01:27]} b6 {[%emt 0:00:22]} 35. axb6 {[%emt 0:02:09]} axb6 {[%emt 0:00:01]} 36. Rh1 {[%emt 0:00:09]} Rd8 {[%emt 0:01:08]} (36... Qg6 $16 37. Rh5 Qe6) 37. Qd5 {[%emt 0:01:14][%mdl 1024] Threatens to win with Qf7. White has strong compensation.} Qf6 {[%emt 0:00:34] [#] Inhibits Qf7.} (37... Qg6 $142 38. Qb7 Rf8) 38. Ra1 $1 $18 {[%emt 0:01:12]} Bf8 {[%emt 0:00:26]} 39. Kg2 {[%emt 0:05:22]} (39. Ra7 $18) 39... Re8 {[%emt 0:00:34]} (39... Rd7 $16 40. Qc6 (40. Ra8 Kh7 $16) 40... Rf7) 40. Kf2 $2 {[%emt 0:03:27]} (40. Qb7 $18) 40... Qe6 (40... Rd8 $1 $11) 41. Qb7 {[%emt 0:04:51] White is much more active.} ({White should play} 41. Qc6 $14) 41... Qb3 $11 {[%emt 0:03:23]} 42. Kg1 {[%emt 0:03:19]} b5 {[%emt 0:13:00]} (42... Qxb2 $2 43. Ra7 Re7 44. Nxe7 $18) 43. Qd7 {[%emt 0:00:39]} Ra8 {[%emt 0:00:31]} 44. Rxa8 {[%emt 0:03:53][%csl Gf5][%cal Rd7g7]} Qd1+ {[%emt 0:00:04]} 45. Kf2 {[%emt 0:00:08] White used his chance.  Weighted Error Value: White=0.40/Black=0.46} 1/2-1/2